{"text_format":"1","workbook":"xlsx","n_sheets":3,"sheets":["GET.CELL","VBA INDEX","RGB"],"not_rendered":{"charts":0,"images":0,"macros":1,"external_links":0,"defined_names":4,"comments":0,"pivot_tables":0},"unopened":[],"bounds":{"document_bytes":16777216,"sheet_cells":100000,"rows_first":2000,"rows_last":500,"rows_between":2000,"halvings":0,"cell_chars":16384,"cell_head_chars":4096},"cells_cut":0,"cells_raw":0,"read":"whole","date_system":"1900"}

{"sheet":"GET.CELL","index":0,"n_rows":12,"n_cols":8,"rows_kept":12,"cut":false,"hidden":false,"merged":[[1,1,1,7]]}
[]
[null,"Get Colors Using GET.CELL Function"]
[]
[null,"Colors",null,"Colors","Get Color of Left Cell",null,"Get Color of Right Cell","Colors"]
[null,{"$f":"Background","v":55},null,null,{"$f":"getLeftColor","v":55},null,{"$f":"getRightColor","v":55}]
[null,{"$f":"Background","v":2},null,null,{"$f":"getLeftColor","v":2},null,{"$f":"getRightColor","v":2}]
[null,{"$f":"Background","v":47},null,null,{"$f":"getLeftColor","v":47},null,{"$f":"getRightColor","v":47}]
[null,{"$f":"Background","v":46},null,null,{"$f":"getLeftColor","v":46},null,{"$f":"getRightColor","v":46}]
[null,{"$f":"Background","v":48},null,null,{"$f":"getLeftColor","v":48},null,{"$f":"getRightColor","v":48}]
[null,{"$f":"Background","v":42},null,null,{"$f":"getLeftColor","v":42},null,{"$f":"getRightColor","v":42}]
[null,{"$f":"Background","v":50},null,null,{"$f":"getLeftColor","v":50},null,{"$f":"getRightColor","v":50}]
[null,{"$f":"Background","v":29},null,null,{"$f":"getLeftColor","v":29},null,{"$f":"getRightColor","v":29}]

{"sheet":"VBA INDEX","index":1,"n_rows":12,"n_cols":3,"rows_kept":12,"cut":false,"hidden":false,"merged":[[1,1,1,2]]}
[]
[null,"Get Colors Using VBA Codes"]
[]
[null,"Colors"," Colors "]
[null,null,{"$f":"CellColor(B5)","v":23}]
[null,null,{"$f":"CellColor(B6)","v":2}]
[null,null,50]
[null,null,46]
[null,null,48]
[null,null,42]
[null,null,50]
[null,null,{"$f":"CellColor(B12)","v":47}]

{"sheet":"RGB","index":2,"n_rows":12,"n_cols":3,"rows_kept":12,"cut":false,"hidden":false,"merged":[[1,1,1,2]]}
[]
[null,"Get Colors Using VBA Codes"]
[]
[null,"Colors"," RGB Values of the Colors"]
[null,null,{"$f":"getColor(B5,\"rgb\")","v":"68, 114, 196"}]
[null,null,{"$f":"getColor(B6,\"rgb\")","v":"231, 230, 230"}]
[null,null,"68, 84, 106"]
[null,null,"237, 125, 49"]
[null,null,"165, 165, 165"]
[null,null,"91, 155, 213"]
[null,null,"112, 173, 71"]
[null,null,"112, 48, 160"]